fUST/lending_fUST_20241220
["ID","MTS","AMOUNT","RATE_DAILY","PERIOD"]
[346012909,1734624640163,-219.165262,0.000233,7]
[346012910,1734624640172,-219.165262,0.000233,7]
[346012911,1734624640182,-151.0,0.000233,7]
[346012912,1734624640191,-160.615838,0.000233,7]
[346012913,1734624640201,-792.318849,0.000233,7]
[346012914,1734624640210,-792.318849,0.000233,7]
[346012915,1734624640219,-732.98854,0.000233,7]
[346012916,1734624640230,-732.98854,0.000233,7]
[346012917,1734624640239,-1387.749778,0.000233,7]
[346012918,1734624640249,-1387.749778,0.000233,7]
[346012919,1734624640258,-900.162662,0.000233,7]
[346012920,1734624640267,-295.173838,0.000233,7]
[346012921,1734624640276,-900.162662,0.000233,7]
[346012922,1734624640384,-151.0,0.00023309,7]
[346012923,1734624640394,-151.0,0.00023309,7]
[346012924,1734624640404,-378.41328324,0.00023344,2]
[346012925,1734624640414,-500.0,0.00023344,2]
[346012926,1734624640423,-500.0,0.00023344,2]
[346012927,1734624640433,-500.0,0.00023344,2]
[346012928,1734624640443,-151.0,0.00023364,7]
[346012929,1734624640452,-219.165262,0.00023364,7]
[346012930,1734624640462,-219.165262,0.00023364,7]
[346012931,1734624640471,-151.0,0.00023364,7]
[346012932,1734624640481,-792.318849,0.00023364,7]
[346012933,1734624640490,-792.318849,0.00023364,7]
[346012934,1734624640500,-732.98854,0.00023364,7]
[346012935,1734624640509,-732.98854,0.00023364,7]
[346012936,1734624640519,-1387.749778,0.00023364,7]
[346012937,1734624640528,-1387.749778,0.00023364,7]
[346012938,1734624640537,-900.162662,0.00023364,7]
[346012939,1734624640546,-900.162662,0.00023364,7]
[346012940,1734624640555,-3861.7843832,0.0002337,2]
[346012941,1734624640566,-151.0,0.00023396,6]
[346012942,1734624640575,-500.0,0.000234,2]
[346012943,1734624640584,-500.0,0.000234,2]
[346012944,1734624640594,-500.0,0.000234,2]
[346012945,1734624640603,-150.0,0.00023416,2]
[346012946,1734624640612,-533.0,0.00023416,2]
[346012947,1734624640622,-2147.0,0.00023416,2]
[346012948,1734624640631,-2366.0,0.00023416,2]
[346012949,1734624640640,-500.73347967,0.0002345,2]
[346012950,1734624640651,-151.0,0.00023457,7]
[346012951,1734624640660,-254.5395,0.00023457,7]
[346012952,1734624640671,-254.5395,0.00023457,7]
[346012953,1734624640681,-500.0,0.00023457,2]
[346012954,1734624640690,-260.41110513,0.00023457,2]
[346012955,1734624640700,-151.07412419,0.00023457,2]
[346012956,1734624640711,-500.0,0.00023467,2]
[346012957,1734624640722,-151.0,0.00023483,7]
[346012958,1734624640731,-293.548154,0.00023483,7]
[346012959,1734624640741,-293.548154,0.00023483,7]
[346012960,1734624640750,-253.179973,0.00023483,7]
[346012961,1734624640760,-253.179973,0.00023483,7]
[346012962,1734624640769,-364.606489,0.00023483,7]
[346012963,1734624640778,-151.0,0.00023483,7]
[346012964,1734624640787,-364.606489,0.00023483,7]
[346012965,1734624640798,-151.0,0.00023483,7]
[346012966,1734624640807,-606.67728,0.00023483,7]
[346012967,1734624640817,-606.67728,0.00023483,7]
[346012968,1734624640826,-155.709837,0.00023483,7]
[346012969,1734624640835,-168.74036587,0.00023499,2]
[346012970,1734624640845,-4526806.63043893,0.000235,4]
[346012971,1734624640854,-187.0,0.000235,2]
[346012972,1734624640863,-24579.078897,0.000235,7]
[346012973,1734624640873,-151.0,0.000235,7]
[346012974,1734624640882,-151.0,0.000235,7]
[346012975,1734624640892,-151.0,0.000235,7]
[346012976,1734624640903,-282.540722,0.000235,7]
[346012977,1734624640913,-151.0,0.000235,7]
[346012978,1734624640923,-151.0,0.000235,7]
[346012979,1734624640932,-184.594973,0.000235,7]
[346012980,1734624640942,-184.594973,0.000235,7]
[346012981,1734624640951,-184.594973,0.000235,7]
[346012982,1734624640960,-184.594973,0.000235,7]
[346012983,1734624640970,-157.571792,0.000235,7]
[346012984,1734624640979,-151.0,0.000235,7]
[346012985,1734624640988,-151.0,0.000235,7]
[346012986,1734624640997,-220.911474,0.000235,7]
[346012987,1734624641006,-151.0,0.000235,7]
[346012988,1734624641016,-151.0,0.000235,7]
[346012989,1734624641025,-151.0,0.000235,7]
[346012990,1734624641034,-151.0,0.000235,7]
[346012991,1734624641044,-161.79941,0.000235,7]
[346012992,1734624641053,-161.79941,0.000235,7]
[346012993,1734624641062,-161.79941,0.000235,7]
[346012994,1734624641072,-161.79941,0.000235,7]
[346012995,1734624641082,-151.0,0.000235,7]
[346012996,1734624641091,-151.0,0.000235,7]
[346012997,1734624641102,-151.0,0.000235,7]
[346012998,1734624641111,-151.0,0.000235,7]
[346012999,1734624641121,-267.613734,0.000235,7]
[346013000,1734624641130,-267.613734,0.000235,7]
[346013001,1734624641139,-267.613734,0.000235,7]
[346013002,1734624641153,-267.613734,0.000235,7]
[346013003,1734624641163,-151.0,0.000235,7]
[346013004,1734624641172,-151.0,0.000235,7]
[346013005,1734624641182,-1085.312928,0.000235,2]
[346013006,1734624641191,-151.0,0.000235,7]
[346013007,1734624641200,-180.347249,0.000235,7]
[346013008,1734624641209,-373.470328,0.000235,7]
[346013009,1734624641219,-373.470328,0.000235,7]
[346013010,1734624641229,-373.470328,0.000235,7]
[346013011,1734624641239,-373.470328,0.000235,7]
[346013012,1734624641249,-293.548154,0.000235,7]
[346013013,1734624641258,-293.548154,0.000235,7]
[346013014,1734624641268,-293.548154,0.000235,7]
[346013015,1734624641278,-293.548154,0.000235,7]
[346013016,1734624641288,-253.179973,0.000235,7]
[346013017,1734624641297,-253.179973,0.000235,7]
[346013018,1734624641306,-253.179973,0.000235,7]
[346013019,1734624641316,-253.179973,0.000235,7]
[346013020,1734624641325,-364.606489,0.000235,7]
[346013021,1734624641335,-364.606489,0.000235,7]
[346013022,1734624641344,-151.0,0.000235,7]
[346013023,1734624641354,-151.0,0.000235,7]
[346013024,1734624641363,-364.606489,0.000235,7]
[346013025,1734624641373,-364.606489,0.000235,7]
[346013026,1734624641383,-151.0,0.000235,7]
[346013027,1734624641392,-241.205914,0.000235,7]
[346013028,1734624641403,-151.0,0.000235,7]
[346013029,1734624641414,-151.0,0.000235,7]
[346013030,1734624641424,-606.67728,0.000235,7]
[346013031,1734624641434,-606.67728,0.000235,7]
[346013032,1734624641444,-606.67728,0.000235,7]
[346013033,1734624641455,-606.67728,0.000235,7]
[346013034,1734624641466,-254.5395,0.000235,7]
[346013035,1734624641475,-254.5395,0.000235,7]
[346013036,1734624641486,-254.5395,0.000235,7]
[346013037,1734624641495,-254.5395,0.000235,7]
[346013038,1734624641505,-163.232853,0.000235,4]
[346013039,1734624641514,-264.293832,0.000235,7]
[346013040,1734624641523,-219.165262,0.000235,7]
[346013041,1734624641533,-219.165262,0.000235,7]
[346013042,1734624641543,-219.165262,0.000235,7]
[346013043,1734624641552,-219.165262,0.000235,7]
[346013044,1734624641561,-151.0,0.000235,7]
[346013045,1734624641571,-151.0,0.000235,7]
[346013046,1734624641580,-792.318849,0.000235,7]
[346013047,1734624641590,-792.318849,0.000235,7]
[346013048,1734624641599,-792.318849,0.000235,7]
[346013049,1734624641608,-792.318849,0.000235,7]
[346013050,1734624641617,-732.98854,0.000235,7]
[346013051,1734624641627,-732.98854,0.000235,7]
[346013052,1734624641636,-732.98854,0.000235,7]
[346013053,1734624641646,-732.98854,0.000235,7]
[346013054,1734624641658,-1387.749778,0.000235,7]
[346013055,1734624641668,-1387.749778,0.000235,7]
[346013056,1734624641677,-1387.749778,0.000235,7]
[346013057,1734624641687,-1387.749778,0.000235,7]
[346013058,1734624641697,-900.162662,0.000235,7]
[346013059,1734624641707,-900.162662,0.000235,7]
[346013060,1734624641717,-900.162662,0.000235,7]
[346013061,1734624641726,-900.162662,0.000235,7]
[346013062,1734624641736,-420.0,0.00023524,2]
[346013063,1734624641746,-500.0,0.00023525,2]
[346013064,1734624641756,-500.0,0.00023525,2]
[346013065,1734624641766,-151.0,0.00023525,7]
[346013066,1734624641776,-151.0,0.00023525,7]
[346013067,1734624641785,-177.9348185,0.00023562,2]
[346013068,1734624641795,-151.0,0.000236,7]
[346013069,1734624641805,-151.0,0.000236,7]
[346013070,1734624641815,-161.79941,0.000236,7]
[346013071,1734624641824,-161.79941,0.000236,7]
[346013072,1734624641834,-267.613734,0.000236,7]
[346013073,1734624641843,-267.613734,0.000236,7]
[346013074,1734624641853,-151.0,0.000236,7]
[346013075,1734624641863,-373.470328,0.000236,7]
[346013076,1734624641872,-373.470328,0.000236,7]
[346013077,1734624641882,-293.548154,0.000236,7]
[346013078,1734624641892,-293.548158,0.000236,7]
[346013079,1734624641902,-253.179973,0.000236,7]
[346013080,1734624641911,-253.179964,0.000236,7]
[346013081,1734624641921,-364.606489,0.000236,7]
[346013082,1734624641930,-188.406462,0.000236,7]
[346013083,1734624641940,-364.606494,0.000236,7]
[346013084,1734624641950,-606.67728,0.000236,7]
[346013085,1734624641959,-606.677278,0.000236,7]
[346013086,1734624641968,-254.5395,0.000236,7]
[346013087,1734624641979,-254.539505,0.000236,7]
[346013088,1734624641989,-328.58787968,0.000236,2]
[346013089,1734624641998,-1000.0,0.00023719,2]
[346013090,1734624642008,-500.0,0.00023719,2]
[346013091,1734624642017,-1000.0,0.00023719,2]
[346013092,1734624642027,-1000.0,0.00023719,2]
[346013093,1734624642130,-233.20770029,0.00023719,2]
[346013094,1734624642141,-151.0,0.00023741,2]
[346013095,1734624642154,-151.0,0.00023764,6]
[346013097,1734624642164,-199.10541013,0.00023781,2]
[346013098,1734624642174,-500.63333701,0.00023788,2]
[346013099,1734624642184,-1000.0,0.00023788,2]
[346013101,1734624642195,-609.11655033,0.00023788,2]
[346013102,1734624642204,-6966.46168963,0.00023799,7]
[346013103,1734624642213,-219.165262,0.00023799,7]
[346013105,1734624642224,-219.165258,0.00023799,7]
[346013106,1734624642233,-151.0,0.00023799,7]
[346013108,1734624642243,-792.318849,0.00023799,7]
[346013109,1734624642252,-792.318845,0.00023799,7]
[346013111,1734624642262,-732.98854,0.00023799,7]
[346013112,1734624642271,-732.988543,0.00023799,7]
[346013113,1734624642281,-1387.749778,0.00023799,7]
[346013114,1734624642291,-1387.7497817,0.00023799,7]
[346013115,1734624642300,-900.162662,0.00023799,7]
[346013116,1734624642310,-900.162672,0.00023799,7]
[346013118,1734624642319,-420.0,0.00023804,2]
[346013119,1734624642329,-153.0,0.00023807,2]
[346013120,1734624642338,-153.0,0.00023807,2]
[346013121,1734624642348,-153.0,0.00023807,2]
[346013122,1734624642357,-153.0,0.00023807,2]
[346013123,1734624642366,-153.0,0.00023807,2]
[346013124,1734624642375,-153.0,0.00023807,2]
[346013125,1734624642385,-153.0,0.00023807,2]
[346013126,1734624642395,-153.0,0.00023807,2]
[346013128,1734624642405,-174.317818,0.00023813,7]
[346013131,1734624642414,-219.4769074,0.00023826,2]
[346013133,1734624642424,-1000.0,0.00023826,2]
[346013134,1734624642434,-153.0,0.00023826,2]
[346013135,1734624642443,-153.0,0.00023826,2]
[346013136,1734624642453,-153.0,0.00023826,2]
[346013138,1734624642462,-153.0,0.00023826,2]
[346013140,1734624642472,-153.0,0.00023826,2]
[346013142,1734624642481,-153.0,0.00023826,2]
[346013144,1734624642491,-153.0,0.00023826,2]
[346013146,1734624642500,-153.0,0.00023826,2]
[346013148,1734624642510,-153.0,0.00023826,2]
[346013150,1734624642520,-153.0,0.00023826,2]
[346013152,1734624642529,-153.0,0.00023826,2]
[346013154,1734624642539,-153.0,0.00023826,2]
[346013156,1734624642548,-153.0,0.00023826,2]
[346013158,1734624642558,-153.0,0.00023826,2]
[346013160,1734624642569,-153.0,0.00023826,2]
[346013162,1734624642578,-184.594973,0.00023857,7]
[346013164,1734624642588,-184.594973,0.00023857,7]
[346013166,1734624642597,-3861.7843832,0.0002387,2]
[346013168,1734624642607,-151.0,0.0002387,7]
[346013170,1734624642616,-207.343098,0.0002387,7]
[346013172,1734624642626,-844.569489,0.00023891,7]
[346013174,1734624642635,-151.0,0.00023891,7]
[346013176,1734624642645,-161.79941,0.00023891,7]
[346013178,1734624642655,-161.799411,0.00023891,7]
[346013180,1734624642665,-267.613734,0.00023891,7]
[346013182,1734624642674,-267.613737,0.00023891,7]
[346013184,1734624642683,-1000.0,0.00023892,2]
[346013186,1734624642693,-1000.0,0.00023892,2]
[346013188,1734624642703,-1000.0,0.00023892,2]
[346013189,1734624642712,-151.0,0.00023899,7]
[346013190,1734624642723,-151.0,0.00023899,7]
[346013191,1734624642732,-151.0,0.00023899,7]
[346013192,1734624642742,-184.594973,0.00023899,7]
[346013193,1734624642752,-184.594973,0.00023899,7]
[346013194,1734624642762,-844.569489,0.00023899,7]
[346013195,1734624642771,-151.0,0.00023899,7]
[346013196,1734624642781,-373.470328,0.00023899,7]
[346013197,1734624642791,-373.470328,0.00023899,7]
[346013198,1734624642800,-2493.2153,0.00023928,15]
[346013199,1734624642810,-500.00000003,0.00023948,2]
[346013200,1734624642820,-501.42537696,0.00023948,2]
[346013201,1734624642830,-1000.0,0.00023948,2]
[346013202,1734624642839,-1013.27658166,0.00023958,2]
[346013203,1734624642850,-86644.74022138,0.0002399,10]
[346013204,1734624642859,-2094.67886529,0.0002399,10]
[346013206,1734624642869,-151.0,0.0002399,7]
[346013208,1734624642879,-151.0,0.0002399,7]
[346013210,1734624642889,-184.594973,0.0002399,7]
[346013212,1734624642899,-184.594973,0.0002399,7]
[346013214,1734624642908,-844.56949704,0.0002399,7]
[346013216,1734624642917,-151.0,0.0002399,7]
[346013219,1734624642927,-373.470328,0.0002399,7]
[346013222,1734624642936,-373.470331,0.0002399,7]
[346013225,1734624642945,-151.0,0.00023994,7]
[346013227,1734624642955,-152204.16416056,0.00024,14]
[346013229,1734624642965,-2000.0,0.00024,2]
[346013231,1734624642974,-151.0,0.00024,7]
[346013233,1734624642984,-151.0,0.00024,7]
[346013235,1734624642993,-151.0,0.00024,7]
[346013237,1734624643003,-151.0,0.00024,7]
[346013239,1734624643013,-184.594973,0.00024,7]
[346013241,1734624643022,-184.594981,0.00024,7]
[346013243,1734624643032,-1002.18574945,0.00024005,2]
[346013245,1734624643041,-1000.0,0.00024015,2]
[346013247,1734624643051,-1000.0,0.00024073,2]
[346013249,1734624643060,-1002.1676929,0.00024073,2]
[346013250,1734624643070,-162.959046,0.0002411,2]
[346013252,1734624643080,-162.959046,0.0002411,18]
[346013254,1734624643089,-162.959046,0.0002411,35]
[346013256,1734624643099,-162.959046,0.0002411,52]
[346013258,1734624643109,-162.959046,0.0002411,69]
[346013259,1734624643118,-162.959046,0.0002411,86]
[346013260,1734624643128,-162.959046,0.0002411,103]
[346013261,1734624643138,-162.959046,0.0002411,119]
[346013262,1734624643152,-151.0,0.00024131,7]
[346013263,1734624643162,-155.0,0.00024164,2]
[346013264,1734624643171,-151.0,0.00024176,7]
[346013265,1734624643180,-151.0,0.00024176,7]
[346013266,1734624643191,-1508.51,0.00024189,4]
[346013267,1734624643201,-500.0,0.00024203,9]
[346013268,1734624643211,-500.0,0.00024203,9]
[346013269,1734624643220,-24795.74100385,0.0002427,3]
[346013270,1734624643231,-151.0,0.0002427,7]
[346013271,1734624643241,-1022.20040068,0.0002436,2]
[346013272,1734624643251,-103533.0,0.00024366,7]
[346013273,1734624643260,-192.598011,0.00024366,7]
[346013274,1734624643270,-151.0,0.00024366,7]
[346013275,1734624643280,-3861.7843832,0.0002437,2]
[346013276,1734624643290,-527.1168464,0.00024381,2]
[346013277,1734624643299,-1000.0,0.0002449,2]
[346013278,1734624643309,-151.0,0.00024498,7]
[346013279,1734624643319,-200.6,0.000245,14]
[346013280,1734624643329,-954.13650519,0.000245,2]
[346013281,1734624643338,-1000.0,0.00024519,2]
[346013282,1734624643348,-600.0,0.00024583,2]
[346013283,1734624643357,-1000.0,0.00024595,2]
[346013284,1734624643366,-187.75,0.000246,2]
[346013285,1734624643376,-2000.0,0.000246,2]
[346013286,1734624643386,-151.0,0.000246,7]
[346013287,1734624643396,-495.0,0.000246,11]
[346013288,1734624643407,-61829.68736648,0.000246,2]
[346013289,1734624643416,-167.0,0.00024621,2]
[346013290,1734624643425,-168.92,0.00024621,2]
[346013291,1734624643435,-151.0,0.00024621,2]
[346013292,1734624643444,-151.0,0.00024621,2]
[346013293,1734624643454,-151.0,0.00024621,2]
[346013294,1734624643463,-151.0,0.00024621,2]
[346013295,1734624643473,-151.0,0.00024621,2]
[346013296,1734624643483,-151.0,0.00024621,2]
[346013297,1734624643492,-151.0,0.00024621,2]
[346013298,1734624643501,-151.0,0.00024621,2]
[346013299,1734624643510,-151.0,0.00024621,2]
[346013300,1734624643520,-151.0,0.00024621,2]
[346013301,1734624643530,-151.0,0.00024621,2]
[346013302,1734624643540,-151.0,0.00024621,2]
[346013303,1734624643549,-151.0,0.00024621,2]
[346013304,1734624643559,-151.0,0.00024621,2]
[346013305,1734624643568,-242.23,0.00024621,2]
[346013306,1734624643578,-2259.03,0.00024657,7]
[346013307,1734624643587,-500.0,0.00024657,6]
[346013308,1734624643597,-500.0,0.00024657,6]
[346013309,1734624643607,-500.0,0.00024657,6]
[346013310,1734624643616,-500.84389074,0.00024657,6]
[346013311,1734624643625,-501.43261117,0.00024657,6]
[346013312,1734624643635,-502.52219613,0.00024657,6]
[346013313,1734624643644,-506.16875117,0.00024657,6]
[346013314,1734624643751,-500.0,0.00024657,6]
[346013315,1734624643762,-500.0,0.00024657,6]
[346013316,1734624643772,-636.60515215,0.00024657,6]
[346013317,1734624643782,-500.0,0.00024657,6]
[346013318,1734624643792,-500.0,0.00024657,6]
[346013319,1734624643802,-500.0,0.00024657,6]
[346013320,1734624643813,-500.0,0.00024657,6]
[346013321,1734624643822,-500.0,0.00024657,6]
[346013322,1734624643832,-500.0,0.00024657,6]
[346013323,1734624643841,-500.0,0.00024657,6]
[346013324,1734624643850,-500.0,0.00024657,6]
[346013325,1734624643859,-500.0,0.00024657,6]
[346013326,1734624643869,-500.0,0.00024657,6]
[346013327,1734624643878,-510.98194837,0.00024657,6]
[346013328,1734624643887,-508.17087857,0.00024657,6]
[346013329,1734624643897,-500.0,0.00024657,2]
[346013330,1734624643908,-500.0,0.00024657,2]
[346013331,1734624643918,-500.0,0.00024657,2]
[346013332,1734624643927,-503.2769917,0.00024657,2]
[346013333,1734624643936,-509.25388537,0.00024657,6]
[346013334,1734624643945,-501.11163246,0.00024657,6]
[346013335,1734624643954,-419.64404752,0.00024657,6]
[346013336,1734624643964,-500.0,0.00024657,6]
[346013337,1734624643973,-500.0,0.00024657,6]
[346013338,1734624643983,-153.16338759,0.00024657,6]
[346013339,1734624643992,-500.0,0.00024657,6]
[346013340,1734624644001,-500.0,0.00024657,6]
[346013341,1734624644011,-500.0,0.00024657,6]
[346013342,1734624644021,-500.0,0.00024657,6]
[346013343,1734624644030,-500.0,0.00024657,6]
[346013344,1734624644039,-305.91873109,0.00024657,6]
[346013345,1734624644049,-500.0,0.00024657,6]
[346013346,1734624644059,-500.0,0.00024657,6]
[346013347,1734624644068,-501.83384937,0.00024657,6]
[346013348,1734624644077,-500.88091951,0.00024657,6]
[346013349,1734624644087,-500.0,0.00024657,6]
[346013350,1734624644096,-502.08089568,0.00024657,6]
[346013351,1734624644105,-500.0,0.00024657,6]
[346013352,1734624644115,-500.0,0.00024657,6]
[346013353,1734624644124,-500.0,0.00024657,6]
[346013354,1734624644133,-502.02629108,0.00024657,6]
[346013355,1734624644142,-500.0,0.00024657,6]
[346013356,1734624644160,-503.70507783,0.00024657,6]
[346013357,1734624644169,-500.0,0.00024657,6]
[346013358,1734624644179,-500.0,0.00024657,6]
[346013359,1734624644188,-500.0,0.00024657,6]
[346013360,1734624644198,-500.0,0.00024657,6]
[346013361,1734624644207,-500.0,0.00024657,6]
[346013362,1734624644217,-500.0,0.00024657,6]
[346013363,1734624644227,-500.0,0.00024657,6]
[346013364,1734624644236,-443.68761719,0.00024657,6]
[346013365,1734624644247,-500.0,0.00024657,6]
[346013366,1734624644257,-500.0,0.00024657,6]
[346013367,1734624644267,-500.0,0.00024657,6]
[346013368,1734624644276,-422.60619126,0.00024657,6]
[346013369,1734624644285,-500.0,0.00024657,6]
[346013370,1734624644294,-503.31315101,0.00024657,6]
[346013371,1734624644304,-297.76800931,0.00024657,6]
[346013372,1734624644313,-504.00991345,0.00024657,6]
[346013373,1734624644322,-625.39,0.00024657,6]
[346013374,1734624644331,-500.0,0.00024657,6]
[346013375,1734624644340,-501.34537852,0.00024657,6]
[346013376,1734624644350,-500.0,0.00024657,6]
[346013377,1734624644359,-500.0,0.00024657,6]
[346013378,1734624644368,-500.0,0.00024657,6]
[346013379,1734624644377,-500.0,0.00024657,6]
[346013380,1734624644387,-500.0,0.00024657,6]
[346013381,1734624644395,-500.0,0.00024657,6]
[346013382,1734624644407,-500.0,0.00024657,6]
[346013383,1734624644416,-500.0,0.00024657,6]
[346013384,1734624644426,-500.0,0.00024657,6]
[346013385,1734624644435,-500.0,0.00024657,6]
[346013386,1734624644444,-500.0,0.00024657,6]
[346013387,1734624644453,-500.0,0.00024657,6]
[346013388,1734624644463,-502.24818816,0.00024657,6]
[346013389,1734624644472,-550.43,0.00024657,6]
[346013390,1734624644482,-502.17354713,0.00024657,6]
[346013391,1734624644491,-500.0,0.00024657,6]
[346013392,1734624644500,-500.0,0.00024657,6]
[346013393,1734624644510,-500.0,0.00024657,6]
[346013394,1734624644520,-2076.77639297,0.00024657,30]
[346013395,1734624644529,-202.81213193,0.00024657,6]
[346013396,1734624644538,-500.0,0.00024657,6]
[346013397,1734624644548,-500.0,0.00024657,6]
[346013398,1734624644557,-501.47147626,0.00024657,6]
[346013399,1734624644566,-500.0,0.00024657,6]
[346013400,1734624644575,-501.21578373,0.00024657,6]
[346013401,1734624644584,-500.0,0.00024657,6]
[346013402,1734624644593,-500.0,0.00024657,6]
[346013403,1734624644602,-500.0,0.00024657,6]
[346013404,1734624644611,-500.0,0.00024657,6]
[346013405,1734624644620,-500.0,0.00024657,6]
[346013406,1734624644629,-500.0,0.00024657,6]
[346013407,1734624644638,-500.0,0.00024657,6]
[346013408,1734624644647,-501.37194675,0.00024657,6]
[346013409,1734624644657,-577.47,0.00024657,6]
[346013410,1734624644666,-856.26,0.00024657,6]
[346013411,1734624644675,-500.0,0.00024657,6]
[346013412,1734624644684,-245.45018947,0.00024657,6]
[346013413,1734624644751,-500.0,0.00024657,6]
[346013414,1734624644761,-500.0,0.00024657,6]
[346013415,1734624644770,-501.16621648,0.00024657,6]
[346013416,1734624644779,-500.0,0.00024657,6]
[346013417,1734624644789,-500.0,0.00024657,6]
[346013418,1734624644798,-500.0,0.00024657,6]
[346013419,1734624644807,-500.0,0.00024657,6]
[346013420,1734624644816,-189.34507938,0.00024657,6]
[346013421,1734624644826,-500.0,0.00024657,6]
[346013422,1734624644835,-500.0,0.00024657,6]
[346013423,1734624644844,-500.0,0.00024657,6]
[346013424,1734624644853,-501.85367863,0.00024657,6]
[346013425,1734624644862,-1247.96,0.00024657,2]
[346013426,1734624644871,-500.0,0.00024657,6]
[346013427,1734624644880,-500.0,0.00024657,6]
[346013428,1734624644889,-164.82852351,0.00024657,6]
[346013429,1734624644899,-500.0,0.00024657,6]
[346013430,1734624644910,-500.0,0.00024657,6]
[346013431,1734624644919,-500.0,0.00024657,6]
[346013432,1734624644928,-500.0,0.00024657,6]
[346013433,1734624644938,-503.31363998,0.00024657,6]
[346013434,1734624644948,-500.0,0.00024657,6]
[346013435,1734624644957,-500.0,0.00024657,6]
[346013436,1734624644966,-507.4614718,0.00024657,6]
[346013437,1734624644976,-500.0,0.00024657,6]
[346013438,1734624644985,-502.52036838,0.00024657,6]
[346013439,1734624644994,-500.0,0.00024657,6]
[346013440,1734624645003,-500.0,0.00024657,6]
[346013441,1734624645013,-644.09273034,0.00024657,6]
[346013442,1734624645022,-893.05,0.00024657,6]
[346013443,1734624645032,-500.0,0.00024657,6]
[346013444,1734624645041,-500.0,0.00024657,6]
[346013445,1734624645050,-500.0,0.00024657,6]
[346013446,1734624645059,-500.0,0.00024657,6]
[346013447,1734624645068,-500.0,0.00024657,6]
[346013448,1734624645078,-500.0,0.00024657,6]
[346013449,1734624645088,-500.0,0.00024657,6]
[346013450,1734624645097,-500.0,0.00024657,6]
[346013451,1734624645106,-507.39066107,0.00024657,6]
[346013452,1734624645115,-500.0,0.00024657,6]
[346013453,1734624645124,-500.0,0.00024657,6]
[346013454,1734624645134,-374.48546465,0.00024657,6]
[346013455,1734624645143,-500.0,0.00024657,6]
[346013456,1734624645157,-500.0,0.00024657,6]
[346013457,1734624645167,-500.0,0.00024657,6]
[346013458,1734624645176,-511.21626649,0.00024657,6]
[346013459,1734624645272,-500.0,0.00024657,6]
[346013460,1734624645283,-598.92,0.00024657,6]
[346013461,1734624645293,-552.92,0.00024657,6]
[346013462,1734624645303,-500.0,0.00024657,6]
[346013463,1734624645312,-500.0,0.00024657,6]
[346013464,1734624645322,-500.0,0.00024657,6]
[346013465,1734624645331,-500.0,0.00024657,6]
[346013466,1734624645341,-523.67,0.00024657,6]
[346013467,1734624645351,-500.0,0.00024657,6]
[346013468,1734624645361,-500.0,0.00024657,6]
[346013469,1734624645370,-705.09,0.00024657,6]
[346013470,1734624645380,-500.0,0.00024657,6]
[346013471,1734624645389,-864.96,0.00024657,6]
[346013474,1734624645399,-500.0,0.00024657,2]